Workbook

Sheet Read Me

Sheet Cashflow
A2: Project Name | C2: Start | E2: Finish | I2: Model | K2: Duration | L2: Year | M2: 2008 | N2: 2008 | O2: 2008 | P2: 2008 | Q2: 2008 | R2: 2008 | S2: 2009 | T2: 2009 | U2: 2009 | V2: 2009 | W2: 2009 | X2: 2009 | Y2: 2009 | Z2: 2009 | AA2: 2009 | AB2: 2009
C3: (mm/dd/yyyy) | E3: (mm/dd/yyyy) | K3: (days) | L3: Month | M3: 7 | N3: 8 | O3: 9 | P3: 10 | Q3: 11 | R3: 12 | S3: 1 | T3: 2 | U3: 3 | V3: 4 | W3: 5 | X3: 6 | Y3: 7 | Z3: 8 | AA3: 9 | AB3: 10
A4: XXX Project | C4: 2008-07-01 | E4: 2009-10-31 | I4: S curve | K4: =E4-C4+1 -> 488
A6: Activity | C6: Start | E6: Finish | G6: Cost | I6: Model | K6: Duration | L6: Cumulative Cost | M6: 437156 | N6: 875086 | O6: 1297403 | P6: 1736380 | Q6: 2159471 | R6: 3650457 | S6: 5225175 | T6: 6758842 | U6: 8452410 | V6: 8778843 | W6: 9466871 | X6: 11077906 | Y6: 13063450 | Z6: 14605812 | AA6: 15637201 | AB6: 15688665
C7: (mm/dd/yyyy) | E7: (mm/dd/yyyy) | G7: ($) | K7: (days) | L7: Monthly Cost | M7: 437156 | N7: 437930 | O7: 422317 | P7: 438977 | Q7: 423091 | R7: 1490986 | S7: 1574718 | T7: 1533667 | U7: 1693568 | V7: 326433 | W7: 688028 | X7: 1611035 | Y7: 1985544 | Z7: 1542362 | AA7: 1031389 | AB7: 51464
A8: TOTAL DIVISION 1 | C8: 2008-07-01 | E8: 2009-10-01 | G8: 1046422.242 | I8: straight line | K8: 458 | M8: 71157 | N8: 70110 | O8: 69064 | P8: 71157 | Q8: 68017 | R8: 71157 | S8: 70110 | T8: 64878 | U8: 70110 | V8: 69064 | W8: 70110 | X8: 69064 | Y8: 71157 | Z8: 70110 | AA8: 69064 | AB8: 2093
A9: TOTAL SITE WORK | C9: 2008-07-01 | E9: 2008-12-01 | G9: 1820890.261 | I9: straight line | K9: 154 | M9: 365999 | N9: 367820 | O9: 353253 | P9: 367820 | Q9: 355074 | R9: 10925
A10: TOTAL CONCRETE | C10: 2008-12-01 | E10: 2009-04-01 | G10: 5521982.611 | I10: straight line | K10: 122 | R10: 1402584 | S10: 1402584 | T10: 1270056 | U10: 1402584 | V10: 44176
A11: TOTAL MASONRY | C11: 2009-05-01 | E11: 2009-09-01 | G11: 942366.4947 | I11: straight line | K11: 124 | W11: 235592 | X11: 228053 | Y11: 235592 | Z11: 235592 | AA11: 7539
A12: TOTAL METAL | C12: 2009-02-01 | E12: 2009-09-01 | G12: 814044.3474 | I12: straight line | K12: 213 | T12: 106640 | U12: 118850 | V12: 114780 | W12: 118036 | X12: 114780 | Y12: 118850 | Z12: 118036 | AA12: 4070
A13: TOTAL WOOD AND PLASTIC | C13: 2009-09-01 | E13: 2009-10-01 | G13: 54777.5692 | I13: straight line | K13: 31 | AA13: 53025 | AB13: 1753
A14: TOTAL THERMAL AND MOISTURE | C14: 2009-06-15 | E14: 2009-07-15 | G14: 856077 | I14: straight line | K14: 31 | X14: 441736 | Y14: 414341
A15: TOTAL DOORS AND WINDOWS | C15: 2009-06-01 | E15: 2009-09-30 | G15: 912090.4077 | I15: straight line | K15: 122 | X15: 224374 | Y15: 231671 | Z15: 231671 | AA15: 224374
A16: TOTAL FINISHES | C16: 2009-06-15 | E16: 2009-09-30 | G16: 984634.3373 | I16: straight line | K16: 108 | X16: 145726 | Y16: 282590 | Z16: 282590 | AA16: 273728
A17: TOTAL SPECIALTIES | C17: 2009-10-01 | E17: 2009-10-15 | G17: 41484.49748 | I17: straight line | K17: 15 | AB17: 41484
A18: TOTAL EQUIPMENT | C18: 2009-09-01 | E18: 2009-10-15 | G18: 18421.5449 | I18: straight line | K18: 45 | AA18: 12287 | AB18: 6134
A19: TOTAL CONVEYING SYSTEMS | C19: 2009-07-15 | E19: 2009-08-15 | G19: 435156 | I19: straight line | K19: 32 | Y19: 231068 | Z19: 204088
A20: TOTAL MECHANICAL | C20: 2009-05-15 | E20: 2009-09-30 | G20: 1337449.45 | I20: straight line | K20: 139 | W20: 163169 | X20: 288889 | Y20: 298251 | Z20: 298251 | AA20: 288889
A21: TOTAL ELECTRICAL | C21: 2008-12-30 | E21: 2009-09-30 | G21: 902870 | I21: straight line | K21: 275 | R21: 6320 | S21: 102024 | T21: 92093 | U21: 102024 | V21: 98413 | W21: 101121 | X21: 98413 | Y21: 102024 | Z21: 102024 | AA21: 98413

Sheet Schedule
A1: Year - Month | B1: Cumulative | C1: Monthly
A2: 2008-7 | B2: 437156 | C2: 437156
A3: 2008-8 | B3: 875086 | C3: 437930
A4: 2008-9 | B4: 1297403 | C4: 422317
A5: 2008-10 | B5: 1736380 | C5: 438977
A6: 2008-11 | B6: 2159471 | C6: 423091
A7: 2008-12 | B7: 3650457 | C7: 1490986
A8: 2009-1 | B8: 5225175 | C8: 1574718
A9: 2009-2 | B9: 6758842 | C9: 1533667
A10: 2009-3 | B10: 8452410 | C10: 1693568
A11: 2009-4 | B11: 8778843 | C11: 326433
A12: 2009-5 | B12: 9466871 | C12: 688028
A13: 2009-6 | B13: 11077906 | C13: 1611035
A14: 2009-7 | B14: 13063450 | C14: 1985544
A15: 2009-8 | B15: 14605812 | C15: 1542362
A16: 2009-9 | B16: 15637201 | C16: 1031389
A17: 2009-10 | B17: 15688665 | C17: 51464

Sheet Model
A1: Cost Model | C1: Parameters | G1: 1 | H1: 2 | I1: 3 | J1: 4 | K1: 5 | L1: 6 | M1: 7 | N1: 8 | O1: 9 | P1: 10 | Q1: 11 | R1: 12 | S1: 13 | T1: 14 | U1: 15 | V1: 16 | W1: 17 | X1: 18 | Y1: 19 | Z1: 20 | AA1: 21 | AB1: 22 | AC1: 23 | AD1: 24 | AE1: 25 | AF1: 26 | AG1: 27 | AH1: 28 | AI1: 29 | AJ1: 30 | AK1: 31 | AL1: 32 | AM1: 33 | AN1: 34 | AO1: 35 | AP1: 36 | AQ1: Sum
A2: straight line | G2: =1/36 -> 0.02777777778 | H2: =1/36 -> 0.02777777778 | I2: 0.02777777778 | J2: 0.02777777778 | K2: 0.02777777778 | L2: 0.02777777778 | M2: 0.02777777778 | N2: 0.02777777778 | O2: 0.02777777778 | P2: 0.02777777778 | Q2: 0.02777777778 | R2: 0.02777777778 | S2: 0.02777777778 | T2: 0.02777777778 | U2: 0.02777777778 | V2: 0.02777777778 | W2: 0.02777777778 | X2: 0.02777777778 | Y2: 0.02777777778 | Z2: 0.02777777778 | AA2: 0.02777777778 | AB2: 0.02777777778 | AC2: 0.02777777778 | AD2: 0.02777777778 | AE2: 0.02777777778 | AF2: 0.02777777778 | AG2: 0.02777777778 | AH2: 0.02777777778 | AI2: 0.02777777778 | AJ2: 0.02777777778 | AK2: 0.02777777778 | AL2: 0.02777777778 | AM2: 0.02777777778 | AN2: 0.02777777778 | AO2: 0.02777777778 | AP2: 0.02777777778 | AQ2: =SUM(G2:AP2) -> 1
A3: normal | C3: 7 | G3: =NORMDIST(G1,18,$C$3,FALSE)+(1-NORMDIST($AP$1, 18, $C$3, TRUE))*2/36 -> 0.003267310096 | H3: =NORMDIST(H1,18,$C$3,FALSE)+(1-NORMDIST($AP$1, 18, $C$3, TRUE))*2/36 -> 0.004462798218 | I3: 0.006018630277 | J3: 0.007994328287 | K3: 0.01044091 | L3: 0.01339321507 | M3: 0.01686159121 | N3: 0.02082388489 | O3: 0.02521891511 | P3: 0.02994269852 | Q3: 0.03484857943 | R3: 0.03975207386 | S3: 0.04444067747 | T3: 0.04868818104 | U3: 0.05227229332 | V3: 0.05499372735 | W3: 0.05669449592 | X3: 0.05727308741 | Y3: 0.05669449592 | Z3: 0.05499372735 | AA3: 0.05227229332 | AB3: 0.04868818104 | AC3: 0.04444067747 | AD3: 0.03975207386 | AE3: 0.03484857943 | AF3: 0.02994269852 | AG3: 0.02521891511 | AH3: 0.02082388489 | AI3: 0.01686159121 | AJ3: 0.01339321507 | AK3: 0.01044091 | AL3: 0.007994328287 | AM3: 0.006018630277 | AN3: 0.004462798218 | AO3: 0.003267310096 | AP3: 0.002370539193 | AQ3: =SUM(G3:AP3) -> 0.9998722467
A4: left skewed | C4: 2 | D4: 12 | G4: =GAMMADIST(G1,$C$4,$D$4,FALSE)+(1-GAMMADIST($AP$1, $C$4, $D$4, TRUE))/36 -> 0.01192109381 | H4: =GAMMADIST(H1,$C$4,$D$4,FALSE)+(1-GAMMADIST($AP$1, $C$4, $D$4, TRUE))/36 -> 0.01728858711 | I4: 0.0217569128 | J4: 0.025435544 | K4: 0.02842219615 | L4: 0.03080400731 | M4: 0.03265860496 | N4: 0.03405506977 | O4: 0.03505480603 | P4: 0.03571232763 | Q4: 0.03607596731 | R4: 0.03618851659 | S4: 0.03608780292 | T4: 0.03580720992 | U4: 0.03537614616 | V4: 0.03482046739 | W4: 0.03416285669 | X4: 0.03342316651 | Y4: 0.03261872631 | Z4: 0.0317646191 | AA4: 0.03087392991 | AB4: 0.02995796881 | AC4: 0.02902647114 | AD4: 0.02808777703 | AE4: 0.02714899222 | AF4: 0.02621613221 | AG4: 0.02529425109 | AH4: 0.02438755691 | AI4: 0.02349951458 | AJ4: 0.02263293787 | AK4: 0.02179007135 | AL4: 0.02097266343 | AM4: 0.02018203135 | AN4: 0.01941911896 | AO4: 0.018684548 | AP4: 0.01797866358 | AQ4: =SUM(G4:AP4) -> 1.005587257
A5: right skewed | C5: 2 | D5: 12 | G5: =GAMMADIST(36-G1+1,$C$5,$D$5,FALSE)+(1-GAMMADIST($AP$1, $C$5, $D$5, TRUE))/36 -> 0.01797866358 | H5: =GAMMADIST(36-H1+1,$C$5,$D$5,FALSE)+(1-GAMMADIST($AP$1, $C$5, $D$5, TRUE))/36 -> 0.018684548 | I5: 0.01941911896 | J5: 0.02018203135 | K5: 0.02097266343 | L5: 0.02179007135 | M5: 0.02263293787 | N5: 0.02349951458 | O5: 0.02438755691 | P5: 0.02529425109 | Q5: 0.02621613221 | R5: 0.02714899222 | S5: 0.02808777703 | T5: 0.02902647114 | U5: 0.02995796881 | V5: 0.03087392991 | W5: 0.0317646191 | X5: 0.03261872631 | Y5: 0.03342316651 | Z5: 0.03416285669 | AA5: 0.03482046739 | AB5: 0.03537614616 | AC5: 0.03580720992 | AD5: 0.03608780292 | AE5: 0.03618851659 | AF5: 0.03607596731 | AG5: 0.03571232763 | AH5: 0.03505480603 | AI5: 0.03405506977 | AJ5: 0.03265860496 | AK5: 0.03080400731 | AL5: 0.02842219615 | AM5: 0.025435544 | AN5: 0.0217569128 | AO5: 0.01728858711 | AP5: 0.01192109381 | AQ5: =SUM(G5:AP5) -> 1.005587257
A6: trapezoid | C6: 0.25 | D6: 0.75 | E6: 5 | F6: 3 | G6: 1.337e-06 | H6: 4.14464e-05 | I6: 0.0002821029 | J6: 0.0010441819 | K6: 0.0028089963 | L6: 0.0062182968 | M6: 0.0120742719 | N6: 0.0213395476 | O6: 0.0351371876 | P6: 0.0438596491 | Q6: 0.0438596491 | R6: 0.0438596491 | S6: 0.0438596491 | T6: 0.0438596491 | U6: 0.0438596491 | V6: 0.0438596491 | W6: 0.0438596491 | X6: 0.0438596491 | Y6: 0.0438596491 | Z6: 0.0438596491 | AA6: 0.0438596491 | AB6: 0.0438596491 | AC6: 0.0438596491 | AD6: 0.0438596491 | AE6: 0.0438596491 | AF6: 0.0438596491 | AG6: 0.0438596491 | AH6: 0.0391668472 | AI6: 0.0305032128 | AJ6: 0.0229225327 | AK6: 0.0164248069 | AL6: 0.0110100354 | AM6: 0.0066782182 | AN6: 0.0034293553 | AO6: 0.0012634467 | AP6: 0.0001804924 | AQ6: =SUM(G6:AP6) -> 0.9999999998

Sheet Validation
A1: 1 | B1: 2 | C1: 3 | D1: 4 | E1: 5 | F1: 6 | G1: 7 | H1: 8 | I1: 9 | J1: 10 | K1: 11 | L1: 12 | M1: 13 | N1: 14 | O1: 15 | P1: 16 | Q1: 17 | R1: 18 | S1: 19 | T1: 20 | U1: 21 | V1: 22 | W1: 23 | X1: 24 | Y1: 25 | Z1: 26 | AA1: 27 | AB1: 28
A2: 259910.1676 | B2: 200491.1679 | C2: 312306.6534 | D2: 426034.9276 | E2: 585436.2221 | F2: 742041.7438 | G2: 804396.2415 | H2: 1029817.33 | I2: 1119268.562 | J2: 1259673.872 | K2: 1292715.403 | L2: 1383452.295 | M2: 1403749.961 | N2: 1353276.28 | O2: 1371064.906 | P2: 1283092.701 | Q2: 1266587.169 | R2: 1195969.94 | S2: 1048736.072 | T2: 1042520.437 | U2: 930431.8279 | V2: 881109.4242 | W2: 777121.3819 | X2: 728342.841 | Y2: 656681.6148 | Z2: 571771.7523 | AA2: 529880.8984 | AB2: 458556.336
A3: 345000 | B3: 378250 | C3: 436750 | D3: 493250 | E3: 561750 | F3: 677500 | G3: 811500 | H3: 921000 | I3: 1025000 | J3: 1065000 | K3: 1121500 | L3: 1178500 | M3: 1356500 | N3: 1435000 | O3: 1508500 | P3: 1499750 | Q3: 1462750 | R3: 1412500 | S3: 1100000 | T3: 995500 | U3: 887000 | V3: 803250 | W3: 701750 | X3: 595000 | Y3: 371750 | Z3: 359000 | AA3: 346750 | AB3: 373250
A4: =(NORMDIST(A1,15,$A$5,FALSE)+(1-NORMDIST(28, 15, $A$5, TRUE))*2/28)*25000000 -> 249334.552 | B4: =(NORMDIST(B1,15,$A$5,FALSE)+(1-NORMDIST(28, 15, $A$5, TRUE))*2/28)*25000000 -> 310499.095 | C4: 384306.7215 | D4: 471016.1252 | E4: 570073.4672 | F4: 679949.2226 | G4: 798043.8078 | H4: 920690.8306 | I4: 1043278.191 | J4: 1160493.282 | K4: 1266680.871 | L4: 1356283.678 | M4: 1424319.529 | N4: 1466838.743 | O4: 1481303.53 | P4: 1466838.743 | Q4: 1424319.529 | R4: 1356283.678 | S4: 1266680.871 | T4: 1160493.282 | U4: 1043278.191 | V4: 920690.8306 | W4: 798043.8078 | X4: 679949.2226 | Y4: 570073.4672 | Z4: 471016.1252 | AA4: 384306.7215 | AB4: 310499.095
A5: 7

Sheet Manual
A1: 1 | C1: Read Me | E1: A quick guide that shows how to set up the cashflow in literally eight steps only (i.e. steps indicated by red boxes) .
A3: 2 | C3: Cashflow | E3: Main worksheet to enter project cost/time data and view/print output cashflow charts.
A5: 3 | C5: Schedule | E5: Worksheet that lists the project time span versus (1) cost accumulated (to the end of the time period), and (2) cost occurs in that period
A7: 4 | C7: Model | E7: Worksheet where the cost models are set up with different parameters. If a model's parameters are modified, the corresponding curve displayed in the sheet will also change to reflect the updates. When a user re-plot the cashflow sheet, the modified parameters will also be effective.
A9: 5 | C9: Validation | E9: Worksheet where the normal distribution parameter is determined by referencing two other heuristic cost models to fit the curves.

Sheet Remark
A1: This program is developed by Ken-Yu Lin Runner. Please e-mail Ken-Yu (kengyuli@hotmail.com) for any questions, comments, or bugs found.
A3: The terminology of left-skew and right-skew in the "Model" sheet is different from what is commonly interpreted in the field of statistics (for more information on the statistical contexts of left-skew and right skew, please see http://www.itl.nist.gov/div898/handbook/eda/section3/histogr6.htm). It is designed so in the program on purpose so that the terminology is more consistent with the interpretations of common users.
A5: Program last updated on 10.28.2009
